[Event "Konyaalti Open-B 2019"]
[Site "Konyaalti"]
[Date "2019.11.17"]
[Round "1.1"]
[White "Odabasi, Nail"]
[Black "Basara, Arda"]
[Result "1-0"]
[ECO "D00"]
[WhiteElo "1374"]
[BlackElo "1809"]
[Annotator "NA RC"]
[PlyCount "55"]
[EventDate "2019.11.20"]
[EventType "swiss"]
[EventCountry "TUR"]
[SourceTitle "playchess.com"]
[Source "ChessBase"]
[SourceQuality "1"]
[TimeControl "5400+30"]

1. d4 {[%emt 0:00:30]} d5 {[%emt 0:00:30]} 2. Nc3 {[%emt 0:00:00]} g6 {[%emt 0:05:30]} 3. Bf4 {[%emt 0:00:00]} Nf6 {[%emt 0:00:30]} 4. e3 {[%emt 0:01:30]} Bg7 {[%emt 0:01:30]} 5. Be2 {[%emt 0:00:30]} O-O {[%emt 0:04:30]} 6. h4 {[%emt 0:01:30]} c5 {[%emt 0:07:30]} 7. Nb5 {[%emt 0:01:30]} Na6 {[%emt 0:06:30]} 8. c3 {[%emt 0:00:30]} Bd7 {[%emt 0:04:30]} 9. a4 {[%emt 0:01:30]} Qa5 {[%emt 0:05:30]} 10. g4 {[%emt 0:01:30]} c4 {[%emt 0:03:30]} 11. h5 {[%emt 0:11:30]} Bxb5 {[%emt 0:01:30]} 12. axb5 {[%emt 0:00:30]} Qxb5 {[%emt 0:00:00]} 13. hxg6 {[%emt 0:04:30]} hxg6 {[%emt 0:07:00]} 14. Qc2 {[%emt 0:05:30]} Nd7 {[%emt 0:14:30]} 15. Nf3 {[%emt 0:01:30]} Rfe8 {[%emt 0:04:30]} 16. Kd2 {[%emt 0:00:30]} e5 {[%emt 0:00:30]} 17. dxe5 {[%emt 0:02:59]} Nac5 {[%emt 0:01:30]} 18. Nd4 {[%emt 0:05:01]} Qb6 {[%emt 0:00:30]} 19. Bf3 {[%emt 0:06:30]} Nxe5 {[%emt 0:06:30]} 20. Bxd5 {[%emt 0:01:30]} Ncd3 {[%emt 0:08:18]} 21. Bxe5 {[%emt 0:02:30]} Bxe5 {[%emt 0:03:56]} 22. Bxc4 {[%emt 0:01:30]} Bxd4 {[%emt 0:05:15]} 23. cxd4 {[%emt 0:06:30]} Nxf2 {[%emt 0:00:04]} 24. Rhf1 {[%emt 0:02:30]} Qb4+ {[%emt 0:03:20]} 25. Ke2 {[%emt 0:01:30]} Ne4 {[%emt 0:04:20]} 26. Rxf7 {[%emt 0:05:30]} b5 {[%emt 0:00:23]} 27. Bb3 {[%emt 0:01:30]} Ng3+ {[%emt 0:00:46]} 28. Kf3 {[%emt 0:05:58]} 1-0

[Event "Konyaalti Open-B 2019"]
[Site "Konyaalti"]
[Date "2019.11.17"]
[Round "1.2"]
[White "Demir, Hilmi Mustafa"]
[Black "Engin, Onur Cinar"]
[Result "1-0"]
[ECO "C36"]
[WhiteElo "1818"]
[BlackElo "1254"]
[Annotator "NA RC"]
[PlyCount "107"]
[EventDate "2019.11.20"]
[EventType "swiss"]
[EventCountry "TUR"]
[SourceTitle "playchess.com"]
[Source "ChessBase"]
[SourceQuality "1"]
[TimeControl "5400+30"]

1. e4 {[%emt 0:00:30]} e5 {[%emt 0:00:30]} 2. f4 {[%emt 0:00:00]} d5 {[%emt 0:00:00]} 3. exd5 {[%emt 0:00:00]} exf4 {[%emt 0:01:00]} 4. Nf3 {[%emt 0:00:00]} Qxd5 {[%emt 0:01:30]} 5. Nc3 {[%emt 0:02:00]} Qd8 {[%emt 0:01:30]} 6. Bc4 {[%emt 0:01:30]} Be7 {[%emt 0:01:30]} 7. d4 {[%emt 0:05:30]} Nf6 {[%emt 0:04:30]} 8. O-O {[%emt 0:02:30]} O-O {[%emt 0:01:30]} 9. Bxf4 {[%emt 0:04:30]} c6 {[%emt 0:01:30]} 10. Ne5 {[%emt 0:10:30]} Nbd7 {[%emt 0:04:30]} 11. Kh1 {[%emt 0:06:30]} Nb6 {[%emt 0:03:30]} 12. Bb3 {[%emt 0:02:30]} a5 {[%emt 0:03:30]} 13. a4 {[%emt 0:04:30]} Nbd5 {[%emt 0:02:30]} 14. Nxd5 {[%emt 0:02:30]} cxd5 {[%emt 0:01:30]} 15. Qf3 {[%emt 0:03:30]} Be6 {[%emt 0:03:30]} 16. Bg5 {[%emt 0:04:30]} Ne4 {[%emt 0:05:30]} 17. Bxe7 {[%emt 0:02:30]} Qxe7 {[%emt 0:00:00]} 18. Rad1 {[%emt 0:03:30]} f6 {[%emt 0:08:00]} 19. Nd3 {[%emt 0:00:30]} Rac8 {[%emt 0:02:30]} 20. Rfe1 {[%emt 0:05:30]} Rfe8 {[%emt 0:12:30]} 21. Nf4 {[%emt 0:10:30]} Qd7 {[%emt 0:10:30]} 22. Nxe6 {[%emt 0:07:33]} Rxe6 {[%emt 0:00:30]} 23. Rxe4 {[%emt 0:00:30]} dxe4 {[%emt 0:00:30]} 24. Qxe4 {[%emt 0:00:27]} Rce8 {[%emt 0:02:30]} 25. Re1 {[%emt 0:00:32]} Kf7 {[%emt 0:00:00]} 26. Bxe6+ {[%emt 0:00:28]} Rxe6 {[%emt 0:00:00]} 27. Qxe6+ {[%emt 0:00:30]} Qxe6 {[%emt 0:00:00]} 28. Rxe6 {[%emt 0:00:00]} Kxe6 {[%emt 0:00:00]} 29. c4 {[%emt 0:00:00]} Kf5 {[%emt 0:00:30]} 30. Kg1 {[%emt 0:00:30]} Ke4 {[%emt 0:00:30]} 31. d5 {[%emt 0:00:30]} Ke5 {[%emt 0:00:00]} 32. g4 {[%emt 0:01:37]} g6 {[%emt 0:01:00]} 33. h4 {[%emt 0:03:26]} h5 {[%emt 0:02:59]} 34. gxh5 {[%emt 0:00:20]} gxh5 {[%emt 0:00:00]} 35. Kf2 {[%emt 0:00:07]} Kd6 {[%emt 0:00:00]} 36. Ke3 {[%emt 0:00:21]} Ke5 {[%emt 0:00:00]} 37. Kf3 {[%emt 0:00:09]} b6 {[%emt 0:00:00]} 38. Ke3 {[%emt 0:00:54]} f5 {[%emt 0:04:01]} 39. Kf3 {[%emt 0:03:37]} f4 {[%emt 0:00:30]} 40. d6 {[%emt 0:03:34]} Kxd6 {[%emt 0:00:30]} 41. Kxf4 {[%emt 0:00:05]} Kc5 {[%emt 0:00:00]} 42. Kg5 {[%emt 0:00:18]} Kxc4 {[%emt 0:00:00]} 43. Kxh5 {[%emt 0:00:04]} Kb3 {[%emt 0:00:30]} 44. Kg5 {[%emt 0:00:23]} Kxb2 {[%emt 0:00:30]} 45. h5 {[%emt 0:00:04]} Kb3 {[%emt 0:00:00]} 46. h6 {[%emt 0:00:05]} Kxa4 {[%emt 0:00:00]} 47. h7 {[%emt 0:00:04]} b5 {[%emt 0:00:30]} 48. h8=Q {[%emt 0:00:11]} b4 {[%emt 0:00:30]} 49. Qb2 {[%emt 0:00:19]} b3 {[%emt 0:00:30]} 50. Kf4 {[%emt 0:00:06]} Kb4 {[%emt 0:00:00]} 51. Ke4 {[%emt 0:00:06]} a4 {[%emt 0:01:00]} 52. Kd4 {[%emt 0:00:12]} a3 {[%emt 0:00:58]} 53. Qc3+ {[%emt 0:00:05]} Ka4 {[%emt 0:00:00]} 54. Kc5 {[%emt 0:00:30]} 1-0

[Event "Konyaalti Open-B 2019"]
[Site "Konyaalti"]
[Date "2019.11.17"]
[Round "1.3"]
[White "Yazici, Betul"]
[Black "Yildiz, Tunahan"]
[Result "0-1"]
[ECO "B84"]
[WhiteElo "1294"]
[BlackElo "1752"]
[Annotator "NA RC"]
[PlyCount "77"]
[EventDate "2019.11.20"]
[EventType "swiss"]
[EventCountry "TUR"]
[SourceTitle "playchess.com"]
[Source "ChessBase"]
[SourceQuality "1"]
[TimeControl "5400+30"]

1. e4 {[%emt 0:00:30]} c5 {[%emt 0:00:30]} 2. Nf3 {[%emt 0:00:00]} d6 {[%emt 0:00:00]} 3. d4 {[%emt 0:00:00]} cxd4 {[%emt 0:00:00]} 4. Nxd4 {[%emt 0:00:00]} Nf6 {[%emt 0:00:00]} 5. Nc3 {[%emt 0:00:00]} a6 {[%emt 0:00:00]} 6. a4 {[%emt 0:02:30]} b6 {[%emt 0:01:30]} 7. Be3 {[%emt 0:01:30]} e6 {[%emt 0:01:30]} 8. Be2 {[%emt 0:05:30]} Bb7 {[%emt 0:04:30]} 9. f3 {[%emt 0:07:30]} Nbd7 {[%emt 0:06:30]} 10. Qd2 {[%emt 0:02:30]} Qc7 {[%emt 0:00:30]} 11. O-O {[%emt 0:02:30]} Be7 {[%emt 0:00:30]} 12. Rad1 {[%emt 0:05:30]} O-O {[%emt 0:02:30]} 13. Rfe1 {[%emt 0:06:30]} Rac8 {[%emt 0:02:30]} 14. Kh1 {[%emt 0:04:30]} Qb8 {[%emt 0:05:30]} 15. Ra1 {[%emt 0:08:30]} Rfe8 {[%emt 0:09:30]} 16. Bd3 {[%emt 0:02:30]} Ne5 {[%emt 0:11:30]} 17. Rac1 {[%emt 0:07:30]} Nc4 {[%emt 0:10:30]} 18. Bxc4 {[%emt 0:02:30]} Rxc4 {[%emt 0:00:30]} 19. Qd3 {[%emt 0:01:30]} Rcc8 {[%emt 0:00:30]} 20. Nde2 {[%emt 0:05:30]} Nd7 {[%emt 0:09:30]} 21. Bd4 {[%emt 0:03:30]} Qc7 {[%emt 0:08:30]} 22. Rcd1 {[%emt 0:07:30]} Red8 {[%emt 0:08:12]} 23. Ng3 {[%emt 0:04:10]} Ne5 {[%emt 0:04:49]} 24. Bxe5 {[%emt 0:00:38]} dxe5 {[%emt 0:00:07]} 25. Qe3 {[%emt 0:01:51]} h6 {[%emt 0:01:05]} 26. Nge2 {[%emt 0:01:58]} Bc5 {[%emt 0:02:45]} 27. Qc1 {[%emt 0:01:08]} Qe7 {[%emt 0:01:13]} 28. Rxd8+ {[%emt 0:01:15]} Rxd8 {[%emt 0:00:08]} 29. Rd1 {[%emt 0:00:47]} Bc6 {[%emt 0:00:06]} 30. b3 {[%emt 0:06:36]} Rc8 {[%emt 0:02:12]} 31. Rd3 {[%emt 0:03:46]} b5 {[%emt 0:00:58]} 32. axb5 {[%emt 0:00:38]} axb5 {[%emt 0:00:00]} 33. Qd1 {[%emt 0:03:40]} Ra8 {[%emt 0:00:21]} 34. f4 {[%emt 0:01:48]} Qc7 {[%emt 0:05:57]} 35. fxe5 {[%emt 0:00:37]} Qxe5 {[%emt 0:00:13]} 36. Rd8+ {[%emt 0:00:23]} Rxd8 {[%emt 0:00:26]} 37. Qxd8+ {[%emt 0:00:02]} Kh7 {[%emt 0:00:05]} 38. h3 {[%emt 0:01:11]} b4 {[%emt 0:00:24]} 39. Na4 {[%emt 0:00:30]} 0-1

[Event "Konyaalti Open-B 2019"]
[Site "Konyaalti"]
[Date "2019.11.17"]
[Round "1.4"]
[White "Uysal, Ilyas"]
[Black "Basdar, Atakan"]
[Result "1-0"]
[ECO "C10"]
[WhiteElo "1767"]
[BlackElo "1326"]
[Annotator "NA RC"]
[PlyCount "63"]
[EventDate "2019.11.20"]
[EventType "swiss"]
[EventCountry "TUR"]
[SourceTitle "playchess.com"]
[Source "ChessBase"]
[SourceQuality "1"]
[TimeControl "5400+30"]

1. e4 {[%emt 0:00:30]} e6 {[%emt 0:00:30]} 2. d4 {[%emt 0:00:00]} d5 {[%emt 0:00:00]} 3. Nc3 {[%emt 0:00:00]} dxe4 {[%emt 0:00:00]} 4. Nxe4 {[%emt 0:00:30]} Nd7 {[%emt 0:00:30]} 5. Nf3 {[%emt 0:00:30]} Ngf6 {[%emt 0:00:00]} 6. Bg5 {[%emt 0:02:30]} Be7 {[%emt 0:00:00]} 7. Nxf6+ {[%emt 0:00:30]} Nxf6 {[%emt 0:00:30]} 8. Bd3 {[%emt 0:00:30]} O-O {[%emt 0:00:30]} 9. Ne5 {[%emt 0:04:30]} h6 {[%emt 0:01:30]} 10. Bh4 {[%emt 0:01:30]} Qd5 {[%emt 0:02:30]} 11. O-O {[%emt 0:00:30]} Rd8 {[%emt 0:02:30]} 12. Bxf6 {[%emt 0:04:30]} Bxf6 {[%emt 0:00:30]} 13. Qh5 {[%emt 0:01:30]} Bxe5 {[%emt 0:01:30]} 14. dxe5 {[%emt 0:04:30]} Qd4 {[%emt 0:02:30]} 15. Rad1 {[%emt 0:02:30]} g6 {[%emt 0:02:30]} 16. Bxg6 {[%emt 0:01:30]} Qxd1 {[%emt 0:00:30]} 17. Rxd1 {[%emt 0:01:30]} Rxd1+ {[%emt 0:00:30]} 18. Qxd1 {[%emt 0:00:00]} fxg6 {[%emt 0:00:30]} 19. Qd8+ {[%emt 0:00:00]} Kh7 {[%emt 0:00:30]} 20. f4 {[%emt 0:00:30]} b6 {[%emt 0:00:30]} 21. g4 {[%emt 0:00:30]} c5 {[%emt 0:00:30]} 22. f5 {[%emt 0:00:30]} exf5 {[%emt 0:00:30]} 23. gxf5 {[%emt 0:00:00]} gxf5 {[%emt 0:00:30]} 24. e6 {[%emt 0:00:00]} Bb7 {[%emt 0:00:30]} 25. Qe7+ {[%emt 0:00:30]} Kg6 {[%emt 0:00:30]} 26. Qxb7 {[%emt 0:00:00]} Rd8 {[%emt 0:00:30]} 27. Qf7+ {[%emt 0:00:00]} Kg5 {[%emt 0:00:30]} 28. Qe7+ {[%emt 0:00:30]} Kf4 {[%emt 0:00:00]} 29. Qxd8 {[%emt 0:00:00]} Ke3 {[%emt 0:00:00]} 30. e7 {[%emt 0:00:00]} f4 {[%emt 0:00:30]} 31. e8=Q+ {[%emt 0:00:00]} Kf3 {[%emt 0:00:00]} 32. Qd1# {[%emt 0:00:00]} 1-0

[Event "Konyaalti Open-B 2019"]
[Site "Konyaalti"]
[Date "2019.11.17"]
[Round "1.5"]
[White "Gur, Gurbuz"]
[Black "Yucesoy, Atil"]
[Result "1-0"]
[ECO "C42"]
[WhiteElo "1294"]
[BlackElo "1734"]
[Annotator "NA RC"]
[PlyCount "103"]
[EventDate "2019.11.20"]
[EventType "swiss"]
[EventCountry "TUR"]
[SourceTitle "playchess.com"]
[Source "ChessBase"]
[SourceQuality "1"]
[TimeControl "5400+30"]

1. e4 {[%emt 0:00:30]} e5 {[%emt 0:00:30]} 2. Nf3 {[%emt 0:00:30]} Nf6 {[%emt 0:00:00]} 3. Nc3 {[%emt 0:01:30]} Bb4 {[%emt 0:00:00]} 4. Bd3 {[%emt 0:00:30]} d5 {[%emt 0:09:30]} 5. Nxd5 {[%emt 0:00:30]} Nxd5 {[%emt 0:00:30]} 6. exd5 {[%emt 0:00:30]} Qxd5 {[%emt 0:02:30]} 7. Qe2 {[%emt 0:01:30]} O-O {[%emt 0:09:30]} 8. O-O {[%emt 0:00:30]} Re8 {[%emt 0:02:30]} 9. Bc4 {[%emt 0:00:30]} Qd8 {[%emt 0:06:30]} 10. c3 {[%emt 0:01:30]} Bd6 {[%emt 0:03:30]} 11. d3 {[%emt 0:00:30]} Bg4 {[%emt 0:04:30]} 12. h3 {[%emt 0:05:30]} Bxf3 {[%emt 0:09:30]} 13. Qxf3 {[%emt 0:00:30]} Qf6 {[%emt 0:00:00]} 14. Qxb7 {[%emt 0:00:30]} Nd7 {[%emt 0:00:00]} 15. Qf3 {[%emt 0:00:00]} Qg6 {[%emt 0:01:30]} 16. Bd5 {[%emt 0:01:00]} Rab8 {[%emt 0:00:30]} 17. Be4 {[%emt 0:00:30]} Qe6 {[%emt 0:01:30]} 18. Bd5 {[%emt 0:05:30]} Qg6 {[%emt 0:01:30]} 19. Be4 {[%emt 0:04:30]} Qe6 {[%emt 0:02:30]} 20. Qf5 {[%emt 0:00:00]} Qxf5 {[%emt 0:02:30]} 21. Bxf5 {[%emt 0:00:00]} Nc5 {[%emt 0:00:00]} 22. b4 {[%emt 0:00:30]} Ne6 {[%emt 0:03:00]} 23. Be3 {[%emt 0:02:59]} Nf4 {[%emt 0:06:30]} 24. g3 {[%emt 0:00:30]} Ne2+ {[%emt 0:00:30]} 25. Kg2 {[%emt 0:03:03]} Nxc3 {[%emt 0:00:30]} 26. Rfc1 {[%emt 0:00:30]} Ne2 {[%emt 0:06:30]} 27. Rc2 {[%emt 0:00:30]} Nd4 {[%emt 0:02:30]} 28. Bxd4 {[%emt 0:00:30]} exd4 {[%emt 0:00:00]} 29. a3 {[%emt 0:00:30]} a5 {[%emt 0:00:00]} 30. b5 {[%emt 0:00:30]} Re7 {[%emt 0:05:30]} 31. a4 {[%emt 0:00:30]} Bb4 {[%emt 0:00:30]} 32. Raa2 {[%emt 0:02:59]} Rbe8 {[%emt 0:02:28]} 33. Kf3 {[%emt 0:00:30]} g6 {[%emt 0:02:13]} 34. Be4 {[%emt 0:00:00]} Kg7 {[%emt 0:05:05]} 35. Bc6 {[%emt 0:00:00]} Rd8 {[%emt 0:01:22]} 36. Re2 {[%emt 0:00:00]} Re6 {[%emt 0:02:07]} 37. Rxe6 {[%emt 0:00:00]} fxe6 {[%emt 0:00:01]} 38. Ke4 {[%emt 0:00:00]} Kf6 {[%emt 0:00:36]} 39. Re2 {[%emt 0:00:00]} g5 {[%emt 0:01:36]} 40. g4 {[%emt 0:02:28]} Bc3 {[%emt 0:01:17]} 41. f3 {[%emt 0:01:01]} h6 {[%emt 0:05:16]} 42. Bb7 {[%emt 0:01:30]} Re8 {[%emt 0:01:54]} 43. Bc6 {[%emt 0:00:30]} Rf8 {[%emt 0:00:23]} 44. Bb7 {[%emt 0:00:00]} e5 {[%emt 0:01:18]} 45. Kd5 {[%emt 0:01:00]} Re8 {[%emt 0:00:22]} 46. Kc6 {[%emt 0:00:30]} Re7 {[%emt 0:00:12]} 47. Bc8 {[%emt 0:03:01]} Bb4 {[%emt 0:00:50]} 48. Bd7 {[%emt 0:00:30]} h5 {[%emt 0:01:50]} 49. Kxc7 {[%emt 0:00:00]} Bc5 {[%emt 0:00:32]} 50. Rc2 {[%emt 0:00:00]} Ba7 {[%emt 0:00:14]} 51. Rc6+ {[%emt 0:00:00]} Kg7 {[%emt 0:00:04]} 52. b6 {[%emt 0:00:00]} 1-0

[Event "Konyaalti Open-B 2019"]
[Site "Konyaalti"]
[Date "2019.11.18"]
[Round "2.1"]
[White "Akinci, Emirhan"]
[Black "Demir, Hilmi Mustafa"]
[Result "1/2-1/2"]
[ECO "D02"]
[WhiteElo "1420"]
[BlackElo "1818"]
[Annotator "NA"]
[PlyCount "108"]
[EventDate "2019.11.20"]
[EventType "swiss"]
[EventCountry "TUR"]
[SourceTitle "playchess.com"]
[Source "ChessBase"]
[SourceQuality "1"]
[TimeControl "5400+30"]

1. Nf3 {[%emt 0:00:30]} d5 {[%emt 0:00:30]} 2. d4 {[%emt 0:00:00]} Nf6 {[%emt 0:00:00]} 3. c3 {[%emt 0:00:00]} c5 {[%emt 0:00:00]} 4. Bf4 {[%emt 0:01:30]} Nc6 {[%emt 0:00:30]} 5. dxc5 {[%emt 0:05:30]} e6 {[%emt 0:00:30]} 6. e3 {[%emt 0:03:30]} Bxc5 {[%emt 0:00:30]} 7. Nbd2 {[%emt 0:00:30]} Bd6 {[%emt 0:07:30]} 8. Bxd6 {[%emt 0:03:30]} Qxd6 {[%emt 0:00:30]} 9. Be2 {[%emt 0:01:30]} O-O {[%emt 0:02:30]} 10. O-O {[%emt 0:02:30]} e5 {[%emt 0:02:30]} 11. h3 {[%emt 0:02:30]} Qe7 {[%emt 0:06:30]} 12. Rc1 {[%emt 0:01:30]} Be6 {[%emt 0:02:30]} 13. a3 {[%emt 0:11:30]} Kh8 {[%emt 0:02:30]} 14. Re1 {[%emt 0:01:30]} Rg8 {[%emt 0:01:30]} 15. c4 {[%emt 0:03:30]} e4 {[%emt 0:11:30]} 16. Nh2 {[%emt 0:02:30]} Rgd8 {[%emt 0:02:30]} 17. Qc2 {[%emt 0:02:30]} d4 {[%emt 0:05:30]} 18. exd4 {[%emt 0:08:30]} Nxd4 {[%emt 0:03:30]} 19. Qc3 {[%emt 0:01:30]} Nxe2+ {[%emt 0:03:30]} 20. Rxe2 {[%emt 0:00:00]} Bf5 {[%emt 0:03:30]} 21. Nhf1 {[%emt 0:01:00]} Bg6 {[%emt 0:09:30]} 22. Rce1 {[%emt 0:02:30]} Qc7 {[%emt 0:02:30]} 23. Ng3 {[%emt 0:01:30]} Rd3 {[%emt 0:01:30]} 24. Qc1 {[%emt 0:02:30]} Rxg3 {[%emt 0:06:30]} 25. fxg3 {[%emt 0:01:30]} Qxg3 {[%emt 0:00:00]} 26. Re3 {[%emt 0:00:30]} Qc7 {[%emt 0:01:00]} 27. Qc3 {[%emt 0:02:30]} h6 {[%emt 0:01:30]} 28. b3 {[%emt 0:06:30]} Rc8 {[%emt 0:00:30]} 29. Qb2 {[%emt 0:03:30]} Kh7 {[%emt 0:01:30]} 30. Kh1 {[%emt 0:01:30]} Rd8 {[%emt 0:01:30]} 31. b4 {[%emt 0:05:30]} Nh5 {[%emt 0:01:30]} 32. Qc3 {[%emt 0:00:30]} f5 {[%emt 0:06:52]} 33. Nf1 {[%emt 0:02:53]} f4 {[%emt 0:00:42]} 34. R3e2 {[%emt 0:01:50]} Rd3 {[%emt 0:01:10]} 35. Qb2 {[%emt 0:00:55]} e3 {[%emt 0:01:07]} 36. c5 {[%emt 0:01:44]} Be4 {[%emt 0:00:58]} 37. Kg1 {[%emt 0:00:45]} Rd5 {[%emt 0:03:23]} 38. Nxe3 {[%emt 0:01:09]} fxe3 {[%emt 0:00:16]} 39. Rxe3 {[%emt 0:00:02]} Bg6 {[%emt 0:02:10]} 40. g4 {[%emt 0:00:33]} Nf6 {[%emt 0:01:13]} 41. Qxf6 {[%emt 0:00:36]} gxf6 {[%emt 0:00:05]} 42. Re7+ {[%emt 0:00:04]} Qxe7 {[%emt 0:00:06]} 43. Rxe7+ {[%emt 0:00:00]} Kg8 {[%emt 0:00:15]} 44. Rxb7 {[%emt 0:00:03]} a5 {[%emt 0:07:40]} 45. c6 {[%emt 0:00:41]} Be8 {[%emt 0:00:20]} 46. c7 {[%emt 0:01:28]} Bd7 {[%emt 0:00:26]} 47. Rb8+ {[%emt 0:00:21]} Kf7 {[%emt 0:00:39]} 48. c8=Q {[%emt 0:00:13]} Bxc8 {[%emt 0:00:04]} 49. Rxc8 {[%emt 0:00:00]} Rd3 {[%emt 0:00:28]} 50. bxa5 {[%emt 0:01:24]} Rxa3 {[%emt 0:00:22]} 51. Rc7+ {[%emt 0:01:04]} Kg6 {[%emt 0:00:47]} 52. Kg2 {[%emt 0:00:22]} Rxa5 {[%emt 0:00:33]} 53. Rc3 {[%emt 0:00:17]} h5 {[%emt 0:00:25]} 54. Kg3 {[%emt 0:01:13]} Ra4 1/2-1/2

[Event "Konyaalti Open-B 2019"]
[Site "Konyaalti"]
[Date "2019.11.18"]
[Round "2.2"]
[White "Yildiz, Tunahan"]
[Black "Cakir, Ismail Said"]
[Result "1-0"]
[ECO "E90"]
[WhiteElo "1752"]
[BlackElo "1504"]
[Annotator "NA RC"]
[PlyCount "93"]
[EventDate "2019.11.20"]
[EventType "swiss"]
[EventCountry "TUR"]
[SourceTitle "playchess.com"]
[Source "ChessBase"]
[SourceQuality "1"]
[TimeControl "5400+30"]

1. d4 {[%emt 0:00:30]} Nf6 {[%emt 0:02:30]} 2. Nf3 {[%emt 0:00:00]} g6 {[%emt 0:00:00]} 3. c4 {[%emt 0:00:00]} Bg7 {[%emt 0:00:00]} 4. Nc3 {[%emt 0:00:30]} O-O {[%emt 0:00:30]} 5. e4 {[%emt 0:00:30]} d6 {[%emt 0:00:30]} 6. h3 {[%emt 0:00:30]} e5 {[%emt 0:00:30]} 7. d5 {[%emt 0:00:00]} Nbd7 {[%emt 0:07:30]} 8. Bd3 {[%emt 0:00:00]} a6 {[%emt 0:11:30]} 9. Be3 {[%emt 0:09:30]} Nh5 {[%emt 0:15:30]} 10. g3 {[%emt 0:05:30]} Nc5 {[%emt 0:04:30]} 11. Bc2 {[%emt 0:05:30]} a5 {[%emt 0:11:30]} 12. Qe2 {[%emt 0:09:30]} Bd7 {[%emt 0:04:30]} 13. O-O-O {[%emt 0:03:30]} Qe8 {[%emt 0:08:30]} 14. Ne1 {[%emt 0:26:30]} f5 {[%emt 0:03:30]} 15. exf5 {[%emt 0:08:30]} gxf5 {[%emt 0:01:30]} 16. Nd3 {[%emt 0:07:30]} b6 {[%emt 0:04:30]} 17. Nxc5 {[%emt 0:07:22]} bxc5 {[%emt 0:00:00]} 18. g4 {[%emt 0:00:34]} Nf4 {[%emt 0:00:00]} 19. Qd2 {[%emt 0:01:01]} Ng6 {[%emt 0:02:30]} 20. gxf5 {[%emt 0:01:11]} Bxf5 {[%emt 0:00:30]} 21. Ne4 {[%emt 0:02:06]} Nh4 {[%emt 0:06:13]} 22. Qe2 {[%emt 0:05:07]} Bg6 {[%emt 0:02:36]} 23. Ng5 {[%emt 0:01:52]} Bh5 {[%emt 0:01:48]} 24. Bxh7+ {[%emt 0:01:01]} Kh8 {[%emt 0:00:01]} 25. Qc2 {[%emt 0:01:27]} Bxd1 {[%emt 0:03:52]} 26. Rxd1 {[%emt 0:00:24]} Qh5 {[%emt 0:00:21]} 27. Rg1 {[%emt 0:01:08]} Nf3 {[%emt 0:02:55]} 28. Bg6 {[%emt 0:00:43]} Qh6 {[%emt 0:05:05]} 29. Nf7+ {[%emt 0:00:19]} Rxf7 {[%emt 0:00:05]} 30. Bxh6 {[%emt 0:00:03]} Bxh6+ {[%emt 0:00:04]} 31. Kb1 {[%emt 0:00:43]} Nd4 {[%emt 0:00:58]} 32. Qd1 {[%emt 0:00:43]} Rf6 {[%emt 0:01:12]} 33. Qh5 {[%emt 0:00:29]} Kg7 {[%emt 0:00:09]} 34. Be8+ {[%emt 0:01:34]} Kf8 {[%emt 0:00:37]} 35. Rg6 {[%emt 0:00:26]} Rxg6 {[%emt 0:00:44]} 36. Bxg6 {[%emt 0:00:19]} Bg7 {[%emt 0:00:15]} 37. Qg4 {[%emt 0:00:35]} Rd8 {[%emt 0:00:34]} 38. Qg5 {[%emt 0:00:17]} Rd7 {[%emt 0:00:16]} 39. h4 {[%emt 0:00:15]} Re7 {[%emt 0:00:55]} 40. h5 {[%emt 0:00:18]} e4 {[%emt 0:00:32]} 41. h6 {[%emt 0:00:33]} Bh8 {[%emt 0:00:22]} 42. Qg4 {[%emt 0:00:18]} Re5 {[%emt 0:00:48]} 43. Qc8+ {[%emt 0:00:31]} Ke7 {[%emt 0:00:01]} 44. Qxh8 {[%emt 0:00:50]} Rg5 {[%emt 0:00:08]} 45. Qg7+ {[%emt 0:00:10]} Kd8 {[%emt 0:00:14]} 46. Qf8+ {[%emt 0:00:09]} Kd7 {[%emt 0:00:01]} 47. Qe8# {[%emt 0:01:59]} 1-0

[Event "Konyaalti Open-B 2019"]
[Site "Konyaalti"]
[Date "2019.11.18"]
[Round "2.3"]
[White "Yerzhan, Zhangir"]
[Black "Uysal, Ilyas"]
[Result "0-1"]
[ECO "B48"]
[WhiteElo "1649"]
[BlackElo "1767"]
[Annotator "NA RC"]
[PlyCount "84"]
[EventDate "2019.11.20"]
[EventType "swiss"]
[EventCountry "TUR"]
[SourceTitle "playchess.com"]
[Source "ChessBase"]
[SourceQuality "1"]
[TimeControl "5400+30"]

1. e4 {[%emt 0:00:30]} c5 {[%emt 0:01:30]} 2. Nf3 {[%emt 0:00:00]} e6 {[%emt 0:01:30]} 3. d4 {[%emt 0:00:00]} cxd4 {[%emt 0:00:00]} 4. Nxd4 {[%emt 0:00:00]} Nc6 {[%emt 0:00:00]} 5. Nc3 {[%emt 0:00:00]} Qc7 {[%emt 0:00:30]} 6. Be3 {[%emt 0:04:30]} a6 {[%emt 0:00:30]} 7. a4 {[%emt 0:01:30]} Nf6 {[%emt 0:05:30]} 8. Be2 {[%emt 0:03:30]} Bb4 {[%emt 0:01:30]} 9. Nxc6 {[%emt 0:13:30]} Qxc6 {[%emt 0:04:30]} 10. O-O {[%emt 0:02:30]} Nxe4 {[%emt 0:19:30]} 11. Nxe4 {[%emt 0:00:00]} Qxe4 {[%emt 0:01:30]} 12. Bd3 {[%emt 0:04:00]} Qh4 {[%emt 0:07:30]} 13. g3 {[%emt 0:08:30]} Qh3 {[%emt 0:06:30]} 14. Be4 {[%emt 0:05:30]} Be7 {[%emt 0:03:30]} 15. Qe2 {[%emt 0:09:30]} d5 {[%emt 0:02:30]} 16. Bg2 {[%emt 0:03:30]} Qf5 {[%emt 0:00:30]} 17. c4 {[%emt 0:01:30]} O-O {[%emt 0:02:30]} 18. Rfd1 {[%emt 0:03:30]} dxc4 {[%emt 0:18:30]} 19. Qxc4 {[%emt 0:00:00]} Qa5 {[%emt 0:10:08]} 20. Bf4 {[%emt 0:08:00]} e5 {[%emt 0:03:48]} 21. Rd5 {[%emt 0:01:30]} b5 {[%emt 0:01:20]} 22. Qc6 {[%emt 0:07:30]} Be6 {[%emt 0:04:35]} 23. Rxe5 {[%emt 0:02:30]} Rac8 {[%emt 0:00:45]} 24. Qe4 {[%emt 0:00:48]} Bf6 {[%emt 0:00:56]} 25. Qe1 {[%emt 0:15:42]} Qxe1+ {[%emt 0:01:56]} 26. Rexe1 {[%emt 0:00:39]} Bxb2 27. Rab1 {[%emt 0:00:36]} Bc3 28. Rec1 {[%emt 0:00:37]} bxa4 29. Bb7 {[%emt 0:00:42]} a3 30. Bxc8 {[%emt 0:00:38]} Rxc8 31. Rxc3 {[%emt 0:03:08]} Rxc3 {[%emt 0:02:50]} 32. Rb8+ {[%emt 0:00:27]} Bc8 {[%emt 0:00:35]} 33. Be5 {[%emt 0:00:43]} Rc1+ {[%emt 0:00:14]} 34. Kg2 {[%emt 0:00:06]} f6 {[%emt 0:00:06]} 35. Bd4 {[%emt 0:01:00]} Kf7 {[%emt 0:00:21]} 36. Rb3 {[%emt 0:00:17]} a2 {[%emt 0:00:33]} 37. Ra3 {[%emt 0:00:09]} Bb7+ {[%emt 0:00:34]} 38. Kh3 {[%emt 0:01:00]} Rc2 {[%emt 0:01:22]} 39. Kg4 {[%emt 0:00:48]} Ke6 {[%emt 0:00:26]} 40. f4 {[%emt 0:00:21]} Kd5 {[%emt 0:00:21]} 41. Rd3 {[%emt 0:00:44]} Ke4 {[%emt 0:00:56]} 42. Rd1 {[%emt 0:00:02]} Rxh2 0-1